Cogmind - Beta 10.2 @@@ ROGUE MODE // 2021.10.23 @ 22:04:58 Player: raddakar Result: Destroyed by D-53 Grenadier with Mini Grenade Launcher Performance ------------- Evolutions (1) 500 Regions Visited (4) 800 Robots Destroyed (62) 310 Value Destroyed (1361) 1361 Prototype IDs (3) 60 Alien Tech Used (0) 0 Bonus (0) 0 TOTAL SCORE: 3031 Bonus ------- None Cogmind --------- Core Integrity 0/400 Matter 139/300 Energy 280/280 System Corruption 0% Temperature Cool (0) Movement Treading (220) Ox3 Location -9/Mines Parts ------- > --- POWER (1) -------- Cooled Ion Engine > --- PROPULSION (2) --- Light Treads Light Treads > --- UTILITY (4) ------ High-capacity Storage Unit High-capacity Storage Unit High-capacity Storage Unit High-capacity Storage Unit > --- WEAPON (2) ------- Heavy Assault Rifle > --- INVENTORY (36) --- Cooled Ion Engine Light Treads Light Treads Cooling System High-capacity Storage Unit High-capacity Storage Unit High-capacity Storage Unit High-capacity Storage Unit High-capacity Matter Pod (200) Trap Extractor Field Recycling Unit (0) Assault Rifle Assault Rifle Heavy Assault Rifle Heavy Assault Rifle Heavy Assault Rifle Heavy Assault Rifle Mini Grenade Launcher Improved Datajack Mining Laser Explosive Trap Peak State ------------ > --- POWER ------------ Cooled Ion Engine > --- PROPULSION ------- Light Treads Light Treads > --- UTILITY ---------- High-capacity Storage Unit High-capacity Storage Unit High-capacity Storage Unit Medium Armor Plating > --- WEAPON ----------- Heavy Assault Rifle Heavy Assault Rifle > --- INVENTORY -------- Cooled Ion Engine Light Treads Light Treads Light Treads Light Treads Armored Wheel Heat Sink High-capacity Storage Unit High-capacity Storage Unit High-capacity Storage Unit High-capacity Storage Unit High-capacity Storage Unit High-capacity Storage Unit High-capacity Matter Pod Transport Network Coupler Salvage Targeting Computer Trap Extractor EM Pulse Cannon EM Pulse Cannon Advanced Beam Cannon Advanced Beam Cannon Ion Cannon Assault Rifle Assault Rifle Grenade Launcher Rocket Launcher Improved Datajack Mining Laser [Rating: 18] Favorites ----------- Power Ion Engine Engine Ion Engine Propulsion Light Treads Treads Light Treads Utility High-capacity Storage Unit Device Trap Extractor Storage High-capacity Storage Unit Processor Transport Network Coupler Protection Light Armor Plating Weapon Assault Rifle Energy Gun Medium Laser Energy Cannon Beam Cannon Ballistic Gun Assault Rifle Launcher Mini Grenade Launcher Special Weapon Mining Laser Special Melee Weapon Improved Datajack Build | -11 -10 -10 -9 -9 ------- Run | Scr Mat Min Mat Min Slots Evolved 2 | . . . 2 . Power . | . . . . . Propulsion . | . . . . . Utility 2 | . . . 2 . Weapon . | . . . . . Parts Attached 69 | 7 17 3 33 9 Power 9 | 1 3 . 5 . Engine 9 | 1 3 . 5 . Core . | . . . . . Reactor . | . . . . . Propulsion 16 | 2 4 1 6 3 Treads 16 | 2 4 1 6 3 Leg . | . . . . . Wheel . | . . . . . Hover . | . . . . . Flight . | . . . . . Utility 16 | 2 3 . 10 1 Device 1 | . . . 1 . Storage 7 | 2 3 . 1 1 Processor 1 | . . . 1 . Hackware . | . . . . . Protection 7 | . . . 7 . Artifact . | . . . . . Weapon 28 | 2 7 2 12 5 Energy Gun 1 | . 1 . . . Energy Cannon 2 | . . . 2 . Ballistic Gun 20 | 2 5 2 7 4 Ballistic Cannon . | . . . . . Launcher 1 | . . . . 1 Special Weapon 2 | . 1 . 1 . Impact Weapon . | . . . . . Slashing Weapon . | . . . . . Piercing Weapon . | . . . . . Special Melee Weapon 2 | . . . 2 . Unidentified Prototypes 1 | . . . 1 . Parts Lost 8 | . . . 1 7 Power . | . . . . . Propulsion 3 | . . . . 3 Utility 2 | . . . 1 1 Weapon 3 | . . . . 3 Highest Loss Streak 7 | . . . 1 7 Average Slot Usage (%) 99 | . 99 100 99 99 Engine 12 | . 14 14 10 11 Treads 25 | . 27 28 22 21 Storage 30 | . 28 28 32 33 Processor 1 | . . . 3 . Protection 3 | . . . 7 10 Ballistic Gun 23 | . 26 28 18 20 Naked Turns . | . . . . . Heaviest Build 117 | 13 73 73 117 113 Greatest Support 40 | 40 40 40 40 40 Greatest Overweight (x) 2 | . 1 1 2 2 Average Overweight (x) 1 | . . 1 1 2 Largest Inventory Capacity 36 | 8 20 20 28 36 Average Capacity 22 | 6 16 20 27 28 Most Carried 28 | 8 20 20 28 28 Average Carried 21 | 3 15 19 27 27 Final Capacity 36 | 8 20 20 28 36 Final Carried 28 | 8 20 20 28 21 Class Distribution -------------------- 85% | Hauler-Mutant 10% | Mutant 4% | Scavenger-Mutant Dominant Class ---------------- Hauler-Mutant | -10/Materials Hauler-Mutant | -10/Mines Hauler-Mutant | -9/Materials Hauler-Mutant | -9/Mines Resources | -11 -10 -10 -9 -9 ----------- Run | Scr Mat Min Mat Min Matter Collected 2128 | 282 641 158 979 68 Remotely . | . . . . . Salvage Created 2419 | 64 732 196 1326 101 Parts 144 | 3 35 15 83 8 Haulers Intercepted 6 | . 2 . 4 . Recyclers Shooed 4 | . 2 . 2 . Parts Field Recycled . | . . . . . Retrieved Matter . | . . . . . Parts Self-Destructed . | . . . . . Prevented . | . . . . . Kills | -11 -10 -10 -9 -9 ------- Run | Scr Mat Min Mat Min Combat Hostiles Destroyed 58 | . 12 7 25 14 Guns 48 | . 12 7 25 4 AOE 10 | . . . . 10 Classes Destroyed 9 | 1 4 1 1 2 Worker 1 | . 1 . . . Builder 1 | . . . 1 . Hauler 6 | . 2 . 4 . Recycler 6 | 1 3 . 2 . Swarmer 20 | . 5 5 7 3 Grunt 17 | . 7 . 10 . Sentry 10 | . . 2 8 . Demolisher 1 | . . . . 1 Assembled 10 | . . . . 10 Best Kill Streak 10 | 1 4 2 7 10 Combat Bots Only 10 | . 3 2 6 10 Max Kills in Single Turn 4 | 1 2 2 2 4 Gunslinging 1 | . 1 1 1 . Exploded 4 | . . . . 4 Melee . | . . . . . Uniques/NPCs Destroyed . | . . . . . Combat | -11 -10 -10 -9 -9 -------- Run | Scr Mat Min Mat Min Damage Taken 3533 | . 597 404 1092 1440 Core 603 | . 72 113 189 229 Absorbed by Shields . | . . . . . Core Remaining (%) 63 | 100 . 26 . . Volleys Fired 196 | 6 72 23 74 21 Largest 2 | 2 2 2 2 2 Hottest 120 | 40 120 40 100 53 Shots Fired 384 | 12 144 46 147 35 Gun 373 | 12 143 46 140 32 Cannon 6 | . . . 6 . Launcher 3 | . . . . 3 Special 2 | . 1 . 1 . Kinetic 363 | 12 133 46 140 32 Thermal 18 | . 11 . 7 . Explosive 3 | . . . . 3 Electromagnetic . | . . . . . Robot Hit Streak 19 | 3 19 11 15 7 Robot Miss Streak 6 | 1 6 3 4 2 Penetration Max . | . . . . . Secondary Targets 11 | . 3 2 4 2 Max Gunslinging Chain 1 | . 1 1 1 1 Shots Hit Robots 257 | 8 94 28 107 20 Core Hits 129 | 2 41 9 48 29 Critical Hits 1 | . 1 . . . Critical Kills . | . . . . . Critical Parts Destroyed 1 | . 1 . . . Melee Attacks . | . . . . . Impact . | . . . . . Slashing . | . . . . . Piercing . | . . . . . Sneak Attacks . | . . . . . Combat Hostiles . | . . . . . Follow-up Attacks . | . . . . . Damage Inflicted 3800 | 50 801 338 1521 1090 Guns 2935 | 50 801 338 1452 294 Cannons 69 | . . . 69 . Explosions 796 | . . . . 796 Melee . | . . . . . Ramming . | . . . . . Kinetic 2897 | 50 763 338 1452 294 Thermal 107 | . 38 . 69 . Explosive 796 | . . . . 796 Electromagnetic . | . . . . . Impact . | . . . . . Slashing . | . . . . . Piercing . | . . . . . Highest Corruption . | . . . . . Average Corruption . | . . . . . Corruption Purged . | . . . . . Overload Shots . | . . . . . Overflow Damage 15 | . . . . 15 Projectiles . | . . . . . Explosions 15 | . . . . 15 Melee . | . . . . . Knockbacks . | . . . . . Impact . | . . . . . Kinetic . | . . . . . Secondary . | . . . . . Self-Inflicted Damage . | . . . . . Shots . | . . . . . Rammed 1 | . . . 1 . Targets Rammed 1 | . . . 1 . Kicked . | . . . . . Crushed . | . . . . . Highest Temperature 110 | . 110 18 96 9 Average Temperature 18 | . 28 10 14 3 Received Heat Transfer 540 | . 210 36 294 . Siege Activations . | . . . . . Robots Corrupted . | . . . . . Combat Hostiles . | . . . . . Parts Fried . | . . . . . Impact Corruptions . | . . . . . Robots Melted . | . . . . . Combat Hostiles . | . . . . . Parts Melted . | . . . . . Heat Transferred 259 | . 111 . 148 . Parts Sabotaged . | . . . . . Parts Stolen . | . . . . . Parts Stripped . | . . . . . Power Chain Reactions . | . . . . . Missiles Intercepted . | . . . . . Alert | -11 -10 -10 -9 -9 ------- Run | Scr Mat Min Mat Min Peak Influence 317 | 5 177 140 317 156 Initial 86 | . 3 6 . 86 Average 83 | 1 78 32 121 82 Maximum Alert Level 1 | . . . 1 . Low Security (%) 87 | 100 100 100 65 100 Level 1 12 | . . . 34 . Level 2 . | . . . . . Level 3 . | . . . . . Level 4 . | . . . . . Level 5 . | . . . . . High Security . | . . . . . Max Security . | . . . . . Squads Dispatched 7 | . 3 . 4 . Investigation 2 | . 1 . 1 . Extermination . | . . . . . Reinforcement 5 | . 2 . 3 . Assault . | . . . . . Garrison . | . . . . . Intercept . | . . . . . Construction Impeded . | . . . . . Haulers Reinforced . | . . . . . Stealth | -11 -10 -10 -9 -9 --------- Run | Scr Mat Min Mat Min Distress Signals 4 | . 3 . 1 . Communications Jammed . | . . . . . Distress Signals . | . . . . . Times Spotted 107 | . 34 8 40 25 Peak Tracking Total 20 | . 4 3 7 20 Tactical Retreats 5 | . 1 1 2 1 Traps | -11 -10 -10 -9 -9 ------- Run | Scr Mat Min Mat Min Traps Triggered 4 | . 1 . 3 . Indirectly . | . . . . . Trap Hack Attempts 36 | . . . 36 . Triggered . | . . . . . Disarmed 9 | . 6 . 3 . Reprogrammed 1 | . . . 1 . Reused . | . . . . . Traps Extracted 1 | . . . 1 . Installed . | . . . . . Triggered . | . . . . . Machines | -11 -10 -10 -9 -9 ---------- Run | Scr Mat Min Mat Min Machines Disabled . | . . . . . Max in Single Turn . | . . . . . Machines Sabotaged . | . . . . . Garrisons Compromised . | . . . . . Overloaded Fab Kills . | . . . . . Fab Network Shutdowns . | . . . . . Hacking | -11 -10 -10 -9 -9 --------- Run | Scr Mat Min Mat Min Machines Accessed 17 | . 8 . 9 . Terminals 10 | . 6 . 4 . Fabricators . | . . . . . Repair Stations 3 | . 1 . 2 . Recycling Units 2 | . 1 . 1 . Scanalyzers 2 | . . . 2 . Garrison Access . | . . . . . Total Hacks 62 | . 20 . 42 . Successful 51 | . 17 . 34 . Failed 11 | . 3 . 8 . Catastrophic 3 | . 2 . 1 . Database Lockouts . | . . . . . Manual 6 | . 3 . 3 . Terminals 25 | . 13 . 12 . Fabricators . | . . . . . Repair Stations 18 | . 6 . 12 . Recycling Units 2 | . 1 . 1 . Scanalyzers 17 | . . . 17 . Garrison Access . | . . . . . Terminal Hacks 14 | . 8 . 6 . Prototype ID Bank 1 | . 1 . . . Branch Access Points 2 | . 1 . 1 . Emergency Access Points 1 | . . . 1 . Alert Level 3 | . 3 . . . Unreport Threat 2 | . . . 2 . Disarm Traps 1 | . 1 . . . Transport Status 1 | . . . 1 . Registered Components 1 | . . . 1 . Zone Layout 2 | . 2 . . . Fabricator Hacks . | . . . . . Repair Station Hacks 16 | . 6 . 10 . Scan Component 8 | . 3 . 5 . Repair 8 | . 3 . 5 . Recycling Unit Hacks 2 | . 1 . 1 . Report Inventory 2 | . 1 . 1 . Scanalyzer 16 | . . . 16 . Insert Component 7 | . . . 7 . Analyze 9 | . . . 9 . Garrison Access Hacks . | . . . . . Unauthorized Hacks 3 | . 2 . 1 . Terminals 3 | . 2 . 1 . Botnet 3 | . 2 . 1 . Fabricators . | . . . . . Repair Stations . | . . . . . Recycling Units . | . . . . . Scanalyzers . | . . . . . Garrison Access . | . . . . . Data Cores Recovered . | . . . . . Used . | . . . . . Hacking Detections 11 | . 4 . 7 . Full Trace Events . | . . . . . Feedback Events . | . . . . . Feedback Blocked . | . . . . . Robot Schematics Acquired . | . . . . . Robots Built . | . . . . . Matter . | . . . . . Time . | . . . . . Total Robot Build Rating . | . . . . . Part Schematics Acquired 6 | . . . 6 . Parts Built . | . . . . . Matter . | . . . . . Time . | . . . . . Total Part Build Rating . | . . . . . Parts Repaired 8 | . 3 . 5 . Time 245 | . 78 . 167 . Parts Recycled . | . . . . . Recycled Matter . | . . . . . Retrieved Matter . | . . . . . Retrieved Components . | . . . . . Parts Scanalyzed 6 | . . . 6 . Part Schematics Acquired 6 | . . . 6 . Parts Damaged . | . . . . . Bothacking | -11 -10 -10 -9 -9 ------------ Run | Scr Mat Min Mat Min Used RIF Installer . | . . . . . Robots Hacked . | . . . . . Non-combat . | . . . . . Combat . | . . . . . Robot Hacks Applied . | . . . . . Relay Couplers Released . | . . . . . Robots Rewired . | . . . . . Allies Hacked . | . . . . . Hacks Repelled . | . . . . . Allies | -11 -10 -10 -9 -9 -------- Run | Scr Mat Min Mat Min Total Allies . | . . . . . Largest Group . | . . . . . Highest-Rated Group . | . . . . . Highest-Rated Ally . | . . . . . Total Orders . | . . . . . Ally Attacks . | . . . . . Total Damage . | . . . . . Kills . | . . . . . Allies Corrupted . | . . . . . Allies Melted . | . . . . . Intel | -11 -10 -10 -9 -9 ------- Run | Scr Mat Min Mat Min Robot Analysis Total . | . . . . . Derelict Logs Recovered 1 | . . 1 . . Drone Launches . | . . . . . Drone Recoveries . | . . . . . Exploration | -11 -10 -10 -9 -9 ------------- Run | Scr Mat Min Mat Min Turns Passed 5770 | 120 1628 1315 2175 532 Spaces Moved 2516 | 59 741 682 805 229 Core 7 | 7 . . . . Treads 2509 | 52 741 682 805 229 Legs . | . . . . . Wheels . | . . . . . Hover . | . . . . . Flight . | . . . . . Fastest Speed 50 | 50 160 180 180 200 Average Speed 185 | 146 173 180 199 200 Slowest Speed 200 | 160 180 180 200 200 Overloaded Moves . | . . . . . Propulsion Burnouts . | . . . . . Robots Hopped . | . . . . . Cave-ins Triggered . | . . . . . Exploration Rate (%) 63 | 5 90 99 67 57 Regions Visited 4 Branch Regions 2 Pre-discovered Areas 1 | . . . . 1 Known Exits Taken 2 | . 1 . 1 . Unknown Exits Taken 2 | 1 . 1 . . Scrap Searched 2 | . . 1 . 1 Spaces Dug 2 | . 1 . 1 . Terrain Destroyed 20 | . 1 . 1 18 Melee . | . . . . . Projectile 2 | . 1 . 1 . AOE 18 | . . . . 18 Terrain Rammed . | . . . . . Walls Destroyed . | . . . . . Machines Disabled . | . . . . . Actions | -11 -10 -10 -9 -9 --------- Run | Scr Mat Min Mat Min Total 3326 | 79 973 730 1269 275 Wait 315 | . 82 8 213 12 Move 2512 | 58 740 681 804 229 Hop . | . . . . . Pick Up 97 | 8 31 6 51 1 Fast Attach 19 | 7 3 . 9 . Attach 27 | . 2 . 16 9 Detach 8 | . 1 . 6 1 Swap 23 | . 12 3 8 . Drop 92 | . 30 9 51 2 Fire 196 | 6 72 23 74 21 Melee . | . . . . . Ram . | . . . . . Kick . | . . . . . Crush 1 | . . . 1 . Escape Stasis . | . . . . . Rewire . | . . . . . Trap 36 | . . . 36 . Miscellaneous . | . . . . . Route ------- -11/Scrapyard -10/Materials (discovered 4 exits: *Mat x2 / *Min x2) -10/Mines (discovered 2 exits: *Mat x2) -9/Materials (discovered 3 exits: [*Mat] / *Min x2) -9/Mines (discovered 2 exits: [*Mat x2]) History --------- Turn | Location | Event 6 | -11/Scrapyard | Discovered new exit (range 16) 121 | -11/Scrapyard | Entered Materials 165 | -10/Materials | Identified exit to Mines 303 | -10/Materials | Build established: Mutant 961 | -10/Materials | Build established: Hauler-Mutant 1274 | -10/Materials | Discovered new exit (range 16) 1397 | -10/Materials | Discovered new exit (range 9) 1630 | -10/Materials | Repaired Lgt. Treads 1657 | -10/Materials | Repaired Lgt. Treads 1684 | -10/Materials | Repaired Lgt. Treads 1749 | -10/Materials | Entered Mines 1760 | -10/Mines | Discovered new exit (range 6) 1821 | -10/Mines | Discovered new exit (range 15) 2026 | -10/Mines | Received a Rocket Launcher from a helpful Derelict 2304 | -10/Mines | Core integrity fell below 50% 3064 | -10/Mines | Entered Materials 3064 | -9/Materials | Evolved 2 slots: Utility x2 3499 | -9/Materials | Repaired Imp. Ion Engine 3527 | -9/Materials | Repaired Lgt. Treads 4429 | -9/Materials | Identified exit to Mines 4661 | -9/Materials | Repaired Lgt. Armor Plating 4694 | -9/Materials | Repaired Autogun 4747 | -9/Materials | Repaired Cld. Ion Engine 4955 | -9/Materials | Discovered new exit (range 16) 5239 | -9/Materials | Entered Mines 5411 | -9/Mines | Discovered new exit (range 10) 5515 | -9/Mines | Core integrity fell below 50% 5599 | -9/Mines | Learned location of Storage (-7) 5650 | -9/Mines | Discovered new exit (range 15) 5685 | -9/Mines | Assembled infested the area 5690 | -9/Mines | Assisted by a Guerilla fighting off Assembled 5723 | -9/Mines | Destroyed 10 combat bots 5762 | -9/Mines | Core integrity fell below 20% 5771 | -9/Mines | Destroyed by D-53 Grenadier with Mini Grenade Launcher Last Messages --------------- 05744_ Lgt. Armor Plating destroyed. 05746_ The unstable cave ceiling collapses. 05748_ K-01 Serf collects debris. 05748_ Lgt. Treads destroyed. 05748_ Autogun destroyed. 05749_ The unstable cave ceiling collapses. 05752_ K-01 Serf collects debris. 05757_ Autogun destroyed. 05759_ The unstable cave ceiling collapses. 05759_ K-01 Serf collects debris. 05763_ Lgt. Treads destroyed. 05763_ K-01 Serf collects debris. 05764_ The unstable cave ceiling collapses. 05767_ D-53 Grenadier destroyed. 05767_ Switching to secondary target: D-53 Grenadier. 05767_ K-01 Serf collects debris. 05769_ The unstable cave ceiling collapses. 05769_ Autogun destroyed. 05770_ The unstable cave ceiling collapses. 05770_ K-01 Serf collects debris. Map ----- +----------------------------------------------------+ | | | | | | | | | | | | | | | | | | | | | | | | | | | | | | | ?????????????????????????????????? | | ?????????????????????????????????? | | ?????????????????????????????????? | | ????????????????????######???????# | | ??????????????????### ##??##### | | ??????#######????## #### | | ?????## ####### """ ## | | ????## # " ## | | ????# < ## " # | | ????# # ## | | ????# @ = | | ??# ! * # | | ??# % % ## %< %= | | ??## % ## = | | ???# #### ## # | | ??# % d%! #?## # # | | ??### % k #?## #### ## | | ???# # #?# #??# #? | | ???# #[ ##% #?# #??# #? | | ???## ### #?# #??# #? | | ???? ## # # #?# #?# #??# #? | | ???##? ##### #? ?? #??# #? | | ??????# ????# #? ? #??# #? | | ?????? ?????# #?# ????? ?? | | ?????? ?????? #??## ??????? ?? | | ??????????????##??????????????##?? | | ?????????????????????????????????? | | ?????????????????????????????????? | | ?????????????????????????????????? | | ?????????????????????????????????? | | ?????????????????????????????????? | | ?????????????????????????????????? | | ?????????????????????????????????? | | ?????????????????????????????????? | | ?????????????????????????????????? | +----------------------------------------------------+ Best States ------------- Heat Dissipation 28 Energy Generation 14 Energy Capacity 280 Matter Stores 300 Matter Capacity 300 Sight Range 16 Terrain Scan Density 10 Armor Coverage 225 Evasion (%) 40 Recoil Reduction 2 Item Schematics ----------------- Hcp. Storage Unit | -9/Materials | Scanalyzed Imp. Datajack | -9/Materials | Scanalyzed Trap Extractor | -9/Materials | Scanalyzed Hvy. Assault Rifle | -9/Materials | Scanalyzed Adv. Beam Cannon | -9/Materials | Scanalyzed Hcp. Matter Pod | -9/Materials | Scanalyzed Robot Schematics ------------------ None Fabricated ------------ Nothing Alien Tech Used ----------------- None Achievements -------------- None Challenges ------------ None Game ------ Seed HeatWaveDrive Manual? 0 Play Time 01:07:55 Cumulative 60.0 hours Start 2021.10.23 @ 20:01:25 End 2021.10.23 @ 22:04:58 Sessions 2 Manual Loads 0 Difficulty Rogue Special Mode None Game No. 24 Rogue 24 Adventurer 0 Explorer 0 Win Type - Total 0 Types 0/0/0/0/0/0/0/0/0 Lore% 9 Gallery% 43 Achievement% 30 Wizard Run 0 Options --------- ASCII 0 Keyboard 1 Movement Vi Keybinds 0 Fullscreen 1 Font 18/Cog Map View 76x50 Tactical HUD 1 Map Filters NONE Filters NONE Steam 1 RUN: 3c37ab31-ed52-4972-8681-69d7cfb99a29